[Event "DVM U14 2024"]
[Site "Heidelberg"]
[Date "2024.12.29"]
[Round "5"]
[White "Mohylnyi, Stepan"]
[Black "Faerber, Anna"]
[Result "1-0"]
[ECO "B27"]
[WhiteElo "2180"]
[BlackElo "1698"]
[Annotator "ChessBase"]
[PlyCount "33"]
[EventDate "2024.12.23"]
[EventType "team-tourn"]
[EventRounds "7"]
[EventCountry "GER"]
[SourceTitle "playchess.com"]
[Source "ChessBase"]
[SourceQuality "1"]
[TimeControl "40/5400+30:1800+30"]

1. e4 {[%emt 0:00:05]} c5 {[%emt 0:00:17]} 2. Nf3 {[%emt 0:00:06]} g6 {[%emt 0:00:11]} 3. d4 {[%emt 0:00:07]} cxd4 {[%emt 0:00:08]} 4. Qxd4 {[%emt 0:00:03]} Nf6 {[%emt 0:00:18]} 5. e5 {[%emt 0:00:02]} Nc6 {[%emt 0:00:17]} 6. Qa4 {[%emt 0:00:03]} Nd5 {[%emt 0:01:54]} 7. Qe4 {[%emt 0:00:14]} Nb6 {[%emt 0:01:43]} 8. Nc3 {[%emt 0:00:04]} Bg7 {[%emt 0:01:21]} 9. Bf4 {[%emt 0:00:02]} O-O {[%emt 0:04:39]} 10. O-O-O {[%emt 0:00:58]} f5 {[%emt 0:08:36]} 11. Qe3 {[%emt 0:04:46]} a6 {[%emt 0:07:25]} 12. h4 {[%emt 0:03:12]} e6 {[%emt 0:09:51]} 13. h5 {[%emt 0:01:05]} Nb4 {[%emt 0:04:25]} 14. hxg6 {[%emt 0:00:36]} N4d5 {[%emt 0:03:19]} 15. Nxd5 {[%emt 0:00:56]} Nxd5 {[%emt 0:00:08]} 16. Rxd5 {[%emt 0:00:19]} exd5 {[%emt 0:00:24]} 17. Qc5 {[%emt 0:00:02]} 1-0

[Event "DVM U14 2024"]
[Site "Heidelberg"]
[Date "2024.12.29"]
[Round "5"]
[White "Noennig, Jakob"]
[Black "Bauer, Laura Sophie"]
[Result "1/2-1/2"]
[ECO "C54"]
[WhiteElo "2065"]
[BlackElo "1926"]
[Annotator "NA"]
[PlyCount "46"]
[EventDate "2024.12.23"]
[EventType "team-tourn"]
[EventRounds "7"]
[EventCountry "GER"]
[SourceTitle "playchess.com"]
[Source "ChessBase"]
[SourceQuality "1"]
[TimeControl "40/5400+30:1800+30"]

1. e4 {[%emt 0:00:03]} e5 {[%emt 0:00:04]} 2. Nf3 {[%emt 0:00:08]} Nc6 {[%emt 0:00:04]} 3. Bc4 {[%emt 0:00:09]} Bc5 {[%emt 0:00:06]} 4. c3 {[%emt 0:00:06]} Nf6 {[%emt 0:00:05]} 5. d4 {[%emt 0:00:05]} exd4 {[%emt 0:00:05]} 6. e5 {[%emt 0:00:02]} d5 {[%emt 0:00:05]} 7. Bb5 {[%emt 0:00:04]} Ne4 {[%emt 0:00:05]} 8. cxd4 {[%emt 0:00:04]} Bb6 {[%emt 0:00:07]} 9. Nc3 {[%emt 0:00:04]} O-O {[%emt 0:00:23]} 10. Be3 {[%emt 0:00:03]} Bg4 {[%emt 0:00:07]} 11. h3 {[%emt 0:00:03]} Bh5 {[%emt 0:00:04]} 12. Qc2 {[%emt 0:00:03]} Ba5 {[%emt 0:00:07]} 13. O-O {[%emt 0:16:02]} Bxf3 {[%emt 0:00:17]} 14. gxf3 {[%emt 0:00:08]} Nxd4 {[%emt 0:00:20]} 15. Bxd4 {[%emt 0:06:24]} Qg5+ {[%emt 0:00:29]} 16. Kh1 {[%emt 0:28:07]} Bxc3 {[%emt 0:00:50]} 17. bxc3 {[%emt 0:17:11]} Qf5 {[%emt 0:01:37]} 18. Kg2 {[%emt 0:05:38]} Qg5+ {[%emt 0:00:20]} 19. Kh2 {[%emt 0:00:33]} Qf4+ {[%emt 0:00:04]} 20. Kg2 {[%emt 0:00:05]} Qg5+ {[%emt 0:00:03]} 21. Kh1 {[%emt 0:00:13]} Qf5 {[%emt 0:00:04]} 22. Qd1 {[%emt 0:17:57]} Qxh3+ {[%emt 0:02:24]} 23. Kg1 {[%emt 0:00:01]} Ng3 {[%emt 0:07:00]} 1/2-1/2

[Event "DVM U14 2024"]
[Site "Heidelberg"]
[Date "2024.12.29"]
[Round "5"]
[White "Riechenberg, Sebastian"]
[Black "Steinbrenner, Peter"]
[Result "1/2-1/2"]
[ECO "E07"]
[WhiteElo "2041"]
[BlackElo "1946"]
[Annotator "NA RC"]
[PlyCount "96"]
[EventDate "2024.12.23"]
[EventType "team-tourn"]
[EventRounds "7"]
[EventCountry "GER"]
[SourceTitle "playchess.com"]
[Source "ChessBase"]
[SourceQuality "1"]
[TimeControl "40/5400+30:1800+30"]

1. d4 {[%emt 0:00:04]} Nf6 {[%emt 0:00:13]} 2. c4 {[%emt 0:00:10]} e6 {[%emt 0:00:12]} 3. Nf3 {[%emt 0:00:14]} d5 {[%emt 0:00:29]} 4. g3 {[%emt 0:00:07]} Be7 {[%emt 0:00:46]} 5. Bg2 {[%emt 0:00:06]} c6 {[%emt 0:00:50]} 6. O-O {[%emt 0:06:33]} Nbd7 {[%emt 0:01:19]} 7. Nc3 {[%emt 0:00:23]} b6 {[%emt 0:03:03]} 8. Qd3 {[%emt 0:00:11]} Bb7 {[%emt 0:02:39]} 9. b3 {[%emt 0:03:07]} O-O {[%emt 0:03:49]} 10. Bb2 {[%emt 0:00:47]} c5 {[%emt 0:06:30]} 11. cxd5 {[%emt 0:00:28]} exd5 {[%emt 0:01:19]} 12. Rfd1 {[%emt 0:02:35]} Rc8 {[%emt 0:12:12]} 13. Qf5 {[%emt 0:01:50]} c4 {[%emt 0:16:04]} 14. Ne5 {[%emt 0:01:27]} cxb3 {[%emt 0:07:08]} 15. axb3 {[%emt 0:00:57]} a5 {[%emt 0:01:09]} 16. Rac1 {[%emt 0:05:41]} g6 {[%emt 0:04:19]} 17. Qd3 {[%emt 0:00:50]} Nb8 {[%emt 0:03:43]} 18. Na4 {[%emt 0:11:45]} Ba6 {[%emt 0:06:53]} 19. Qe3 {[%emt 0:03:07]} Qd6 {[%emt 0:03:26]} 20. Bh3 {[%emt 0:01:20]} Rxc1 {[%emt 0:00:49]} 21. Rxc1 {[%emt 0:00:27]} Ne4 {[%emt 0:01:27]} 22. Bg2 {[%emt 0:11:04]} Nf6 {[%emt 0:02:26]} 23. Rc2 {[%emt 0:06:01]} Rc8 {[%emt 0:04:21]} 24. Qc1 {[%emt 0:01:17]} Rxc2 {[%emt 0:01:45]} 25. Qxc2 {[%emt 0:00:01]} Bb7 {[%emt 0:00:47]} 26. Bc1 {[%emt 0:02:54]} Na6 {[%emt 0:02:00]} 27. Bf4 {[%emt 0:01:01]} Qa3 {[%emt 0:04:25]} 28. Bc1 {[%emt 0:11:12]} Qd6 {[%emt 0:00:17]} 29. Nd3 {[%emt 0:04:44]} Ne4 {[%emt 0:03:54]} 30. f3 {[%emt 0:02:42]} Nf6 {[%emt 0:00:27]} 31. Kf2 {[%emt 0:00:55]} Nd7 {[%emt 0:02:47]} 32. Bf4 {[%emt 0:05:55]} Qa3 {[%emt 0:00:20]} 33. Bh3 {[%emt 0:01:36]} f5 {[%emt 0:00:48]} 34. Ne5 {[%emt 0:02:09]} Nf8 {[%emt 0:01:59]} 35. g4 {[%emt 0:02:21]} Ne6 {[%emt 0:01:09]} 36. Qd2 {[%emt 0:03:31]} g5 {[%emt 0:00:47]} 37. gxf5 {[%emt 0:02:12]} Nxf4 {[%emt 0:00:07]} 38. Bg4 {[%emt 0:00:04]} Qd6 {[%emt 0:00:45]} 39. e3 {[%emt 0:00:11]} h5 {[%emt 0:00:27]} 40. exf4 {[%emt 0:00:14]} hxg4 {[%emt 0:00:20]} 41. fxg5 {[%emt 0:30:03]} gxf3 {[%emt 0:10:53]} 42. h4 {[%emt 0:00:00]} Nb4 {[%emt 0:02:17]} 43. Kxf3 {[%emt 0:00:00]} Nc6 {[%emt 0:04:56]} 44. Qe3 {[%emt 0:00:00]} b5 {[%emt 0:08:28]} 45. Nb2 {[%emt 0:00:00]} Nxe5+ {[%emt 0:02:51]} 46. Qxe5 {[%emt 0:00:00]} Qxe5 {[%emt 0:01:28]} 47. dxe5 {[%emt 0:00:00]} d4+ {[%emt 0:00:11]} 48. Kf4 {[%emt 0:00:00]} Bd5 {[%emt 0:01:55]} 1/2-1/2

[Event "DVM U14 2024"]
[Site "Heidelberg"]
[Date "2024.12.29"]
[Round "5"]
[White "Marcziter, Alex"]
[Black "Aweh, Mads"]
[Result "1-0"]
[ECO "B24"]
[WhiteElo "2017"]
[BlackElo "1663"]
[Annotator "NA"]
[PlyCount "75"]
[EventDate "2024.12.23"]
[EventType "team-tourn"]
[EventRounds "7"]
[EventCountry "GER"]
[SourceTitle "playchess.com"]
[Source "ChessBase"]
[SourceQuality "1"]
[TimeControl "40/5400+30:1800+30"]

1. e4 {[%emt 0:00:08]} c5 {[%emt 0:00:09]} 2. Nc3 {[%emt 0:00:44]} Nc6 {[%emt 0:00:35]} 3. g3 {[%emt 0:01:00]} e5 {[%emt 0:01:05]} 4. Bg2 {[%emt 0:02:00]} Nf6 {[%emt 0:01:50]} 5. d3 {[%emt 0:03:42]} Be7 {[%emt 0:01:21]} 6. f4 {[%emt 0:02:08]} d6 {[%emt 0:00:17]} 7. f5 {[%emt 0:05:01]} O-O {[%emt 0:06:53]} 8. Nge2 {[%emt 0:04:28]} Bd7 {[%emt 0:07:03]} 9. h3 {[%emt 0:04:06]} Nd4 {[%emt 0:03:57]} 10. O-O {[%emt 0:06:06]} b5 {[%emt 0:01:23]} 11. g4 {[%emt 0:01:57]} Ne8 {[%emt 0:00:46]} 12. Nd5 {[%emt 0:02:21]} Bg5 {[%emt 0:00:21]} 13. c3 {[%emt 0:10:21]} Nxe2+ {[%emt 0:02:54]} 14. Qxe2 {[%emt 0:00:58]} Bxc1 {[%emt 0:00:11]} 15. Raxc1 {[%emt 0:00:19]} Bc6 {[%emt 0:01:03]} 16. Ne3 {[%emt 0:01:02]} Rc8 {[%emt 0:03:24]} 17. Qf2 {[%emt 0:01:21]} b4 {[%emt 0:02:17]} 18. h4 {[%emt 0:05:08]} bxc3 {[%emt 0:03:38]} 19. bxc3 {[%emt 0:00:00]} Nc7 {[%emt 0:03:16]} 20. g5 {[%emt 0:01:58]} Kh8 {[%emt 0:22:08]} 21. Ng4 {[%emt 0:01:39]} Bd7 {[%emt 0:00:26]} 22. Qe3 {[%emt 0:01:58]} Rb8 {[%emt 0:01:59]} 23. h5 {[%emt 0:03:17]} Kg8 {[%emt 0:09:41]} 24. Rf3 {[%emt 0:04:03]} Ne8 {[%emt 0:02:08]} 25. Rcf1 {[%emt 0:04:06]} Qa5 {[%emt 0:02:26]} 26. g6 {[%emt 0:03:50]} Qxc3 {[%emt 0:01:10]} 27. Qg5 {[%emt 0:05:20]} fxg6 {[%emt 0:02:33]} 28. hxg6 {[%emt 0:01:06]} Nf6 {[%emt 0:02:03]} 29. Nxf6+ {[%emt 0:04:34]} Rxf6 {[%emt 0:03:30]} 30. gxh7+ {[%emt 0:00:16]} Kh8 {[%emt 0:02:56]} 31. Rg3 {[%emt 0:00:16]} Qd4+ {[%emt 0:01:05]} 32. Kh1 {[%emt 0:00:11]} Rh6+ {[%emt 0:00:18]} 33. Bh3 {[%emt 0:01:36]} Rxh7 {[%emt 0:00:50]} 34. f6 {[%emt 0:01:21]} Bxh3 {[%emt 0:03:32]} 35. fxg7+ {[%emt 0:00:17]} Kg8 {[%emt 0:00:10]} 36. Rf8+ {[%emt 0:00:08]} Rxf8 {[%emt 0:00:05]} 37. gxf8=Q+ {[%emt 0:00:11]} Kxf8 {[%emt 0:00:07]} 38. Qg8+ {[%emt 0:00:19]} 1-0

[Event "DVM U14 2024"]
[Site "Heidelberg"]
[Date "2024.12.29"]
[Round "5"]
[White "Li, Yunqi"]
[Black "Roessler, Leo"]
[Result "0-1"]
[ECO "E94"]
[WhiteElo "1990"]
[BlackElo "1589"]
[Annotator "NA RC"]
[PlyCount "74"]
[EventDate "2024.12.23"]
[EventType "team-tourn"]
[EventRounds "7"]
[EventCountry "GER"]
[SourceTitle "playchess.com"]
[Source "ChessBase"]
[SourceQuality "1"]
[TimeControl "40/5400+30:1800+30"]

1. d4 {[%emt 0:00:04]} d6 {[%emt 0:00:12]} 2. c4 {[%emt 0:00:40]} Nf6 {[%emt 0:00:09]} 3. Nc3 {[%emt 0:00:11]} g6 {[%emt 0:00:16]} 4. e4 {[%emt 0:00:20]} Bg7 {[%emt 0:00:32]} 5. Nf3 {[%emt 0:00:05]} O-O {[%emt 0:00:28]} 6. Be2 {[%emt 0:00:11]} e5 {[%emt 0:00:56]} 7. O-O {[%emt 0:00:20]} exd4 {[%emt 0:01:31]} 8. Nxd4 {[%emt 0:01:43]} Re8 {[%emt 0:04:35]} 9. f3 {[%emt 0:02:45]} Nbd7 {[%emt 0:05:13]} 10. Be3 {[%emt 0:04:24]} Ne5 {[%emt 0:05:09]} 11. Kh1 {[%emt 0:13:20]} a6 {[%emt 0:06:11]} 12. Qd2 {[%emt 0:14:40]} Be6 {[%emt 0:18:22]} 13. Nxe6 {[%emt 0:02:42]} fxe6 {[%emt 0:00:58]} 14. Rfd1 {[%emt 0:02:29]} Qe7 {[%emt 0:07:57]} 15. Rab1 {[%emt 0:02:17]} Rad8 {[%emt 0:06:12]} 16. Bg5 {[%emt 0:07:21]} Nf7 {[%emt 0:02:59]} 17. Bh4 {[%emt 0:08:25]} Bh6 {[%emt 0:14:29]} 18. Qc2 {[%emt 0:00:35]} g5 {[%emt 0:02:53]} 19. Bf2 {[%emt 0:00:54]} Bg7 {[%emt 0:02:59]} 20. b4 {[%emt 0:06:33]} b6 {[%emt 0:01:47]} 21. a4 {[%emt 0:05:48]} Nh5 {[%emt 0:03:55]} 22. a5 {[%emt 0:04:33]} bxa5 {[%emt 0:01:54]} 23. bxa5 {[%emt 0:00:14]} Nf4 {[%emt 0:00:35]} 24. Bf1 {[%emt 0:01:34]} Rb8 {[%emt 0:01:26]} 25. Na4 {[%emt 0:01:22]} Qf6 {[%emt 0:02:11]} 26. c5 {[%emt 0:02:01]} Qh6 {[%emt 0:01:14]} 27. cxd6 {[%emt 0:04:41]} cxd6 {[%emt 0:00:20]} 28. Nb6 {[%emt 0:03:40]} Be5 {[%emt 0:03:51]} 29. Bg3 {[%emt 0:03:09]} Nh5 {[%emt 0:01:32]} 30. Bxe5 {[%emt 0:00:59]} Nxe5 {[%emt 0:00:08]} 31. Qd2 {[%emt 0:01:00]} Rbd8 {[%emt 0:00:58]} 32. Bxa6 {[%emt 0:01:31]} Rf8 {[%emt 0:00:19]} 33. Nc4 {[%emt 0:01:11]} Ng3+ {[%emt 0:02:05]} 34. Kg1 {[%emt 0:00:05]} Nh5 {[%emt 0:00:50]} 35. Nxe5 {[%emt 0:03:21]} dxe5 {[%emt 0:00:06]} 36. Qe3 {[%emt 0:02:01]} Nf4 {[%emt 0:00:53]} 37. Kh1 {[%emt 0:01:00]} Qg6 {[%emt 0:01:18]} 0-1

[Event "DVM U14 2024"]
[Site "Heidelberg"]
[Date "2024.12.29"]
[Round "5"]
[White "Klein, Levent"]
[Black "Schwitkowski, Luka"]
[Result "0-1"]
[ECO "A48"]
[WhiteElo "1985"]
[BlackElo "2070"]
[Annotator "NA RC"]
[PlyCount "96"]
[EventDate "2024.12.23"]
[EventType "team-tourn"]
[EventRounds "7"]
[EventCountry "GER"]
[SourceTitle "playchess.com"]
[Source "ChessBase"]
[SourceQuality "1"]
[TimeControl "40/5400+30:1800+30"]

1. d4 {[%emt 0:00:02]} Nf6 {[%emt 0:00:04]} 2. Nf3 {[%emt 0:00:10]} g6 {[%emt 0:00:09]} 3. e3 {[%emt 0:01:12]} Bg7 {[%emt 0:00:41]} 4. Be2 {[%emt 0:00:47]} O-O {[%emt 0:00:08]} 5. b3 {[%emt 0:01:56]} c5 {[%emt 0:02:35]} 6. Bb2 {[%emt 0:01:48]} cxd4 {[%emt 0:04:13]} 7. exd4 {[%emt 0:01:37]} Nc6 {[%emt 0:00:29]} 8. O-O {[%emt 0:00:28]} d5 {[%emt 0:00:08]} 9. Re1 {[%emt 0:13:59]} Bf5 {[%emt 0:01:17]} 10. c3 {[%emt 0:03:31]} Rc8 {[%emt 0:02:59]} 11. Bd3 {[%emt 0:02:34]} e6 {[%emt 0:08:32]} 12. Bxf5 {[%emt 0:02:20]} exf5 {[%emt 0:00:25]} 13. Qd3 {[%emt 0:06:19]} Ne4 {[%emt 0:01:09]} 14. Nbd2 {[%emt 0:03:43]} Re8 {[%emt 0:02:20]} 15. Nf1 {[%emt 0:07:58]} h5 {[%emt 0:19:19]} 16. N3d2 {[%emt 0:01:23]} Qd6 {[%emt 0:19:51]} 17. f3 {[%emt 0:05:36]} Nf6 {[%emt 0:01:13]} 18. Rad1 {[%emt 0:10:03]} h4 {[%emt 0:10:38]} 19. c4 {[%emt 0:02:31]} Nh5 {[%emt 0:04:06]} 20. cxd5 {[%emt 0:05:24]} Nf4 {[%emt 0:02:39]} 21. Qb5 {[%emt 0:01:12]} Qxd5 {[%emt 0:01:11]} 22. Qxd5 {[%emt 0:06:27]} Nxd5 {[%emt 0:00:08]} 23. Nc4 {[%emt 0:03:30]} Rxe1 {[%emt 0:03:23]} 24. Rxe1 {[%emt 0:00:34]} Nxd4 {[%emt 0:06:33]} 25. Rd1 {[%emt 0:02:21]} Nf4 {[%emt 0:00:32]} 26. Nfe3 {[%emt 0:03:36]} b5 {[%emt 0:00:37]} 27. Nd6 {[%emt 0:01:09]} Rc6 {[%emt 0:00:10]} 28. g3 {[%emt 0:05:09]} hxg3 {[%emt 0:01:32]} 29. hxg3 {[%emt 0:00:10]} Rxd6 {[%emt 0:01:09]} 30. gxf4 {[%emt 0:00:13]} Nxf3+ {[%emt 0:02:02]} 31. Kf2 {[%emt 0:00:21]} Rxd1 {[%emt 0:00:06]} 32. Nxd1 {[%emt 0:00:05]} Bxb2 {[%emt 0:00:10]} 33. Nxb2 {[%emt 0:00:38]} Nd4 {[%emt 0:00:42]} 34. Nd3 {[%emt 0:01:38]} f6 {[%emt 0:00:18]} 35. Ke3 {[%emt 0:00:23]} Ne6 {[%emt 0:00:29]} 36. a4 {[%emt 0:00:34]} bxa4 {[%emt 0:00:23]} 37. bxa4 {[%emt 0:00:04]} Kf7 {[%emt 0:00:12]} 38. Nb4 {[%emt 0:00:16]} g5 {[%emt 0:01:16]} 39. Nc6 {[%emt 0:00:28]} a6 {[%emt 0:01:06]} 40. Nb4 {[%emt 0:02:16]} Nc7 {[%emt 0:00:48]} 41. a5 {[%emt 0:29:33]} Ke6 {[%emt 0:30:50]} 42. Nc6 {[%emt 0:00:58]} Kd6 {[%emt 0:03:13]} 43. Nd4 {[%emt 0:01:54]} Nd5+ {[%emt 0:00:00]} 44. Kf3 {[%emt 0:00:00]} Ne7 {[%emt 0:00:00]} 45. Ke3 {[%emt 0:00:00]} Kd5 {[%emt 0:00:00]} 46. Nf3 {[%emt 0:00:00]} g4 {[%emt 0:00:00]} 47. Nd4 {[%emt 0:00:00]} Kc5 {[%emt 0:00:00]} 48. Ne6+ {[%emt 0:00:00]} Kb5 {[%emt 0:00:00]} 0-1

[Event "DVM U14 2024"]
[Site "Heidelberg"]
[Date "2024.12.29"]
[Round "5"]
[White "Retzlaff, Nick"]
[Black "Obermair, Hannes"]
[Result "1-0"]
[ECO "B33"]
[WhiteElo "1979"]
[BlackElo "1653"]
[Annotator "NA"]
[PlyCount "47"]
[EventDate "2024.12.23"]
[EventType "team-tourn"]
[EventRounds "7"]
[EventCountry "GER"]
[SourceTitle "playchess.com"]
[Source "ChessBase"]
[SourceQuality "1"]
[TimeControl "40/5400+30:1800+30"]

1. e4 {[%emt 0:00:03]} c5 {[%emt 0:00:05]} 2. Nf3 {[%emt 0:00:04]} Nc6 {[%emt 0:00:06]} 3. d4 {[%emt 0:00:03]} cxd4 {[%emt 0:00:06]} 4. Nxd4 {[%emt 0:00:02]} Nf6 {[%emt 0:00:08]} 5. Nc3 {[%emt 0:00:03]} e5 {[%emt 0:00:04]} 6. Ndb5 {[%emt 0:00:02]} d6 {[%emt 0:00:14]} 7. Bg5 {[%emt 0:00:09]} a6 {[%emt 0:00:37]} 8. Na3 {[%emt 0:00:04]} b5 {[%emt 0:00:06]} 9. Nd5 {[%emt 0:00:02]} Be7 {[%emt 0:00:33]} 10. Bxf6 {[%emt 0:00:06]} Bxf6 {[%emt 0:00:09]} 11. c3 {[%emt 0:00:03]} O-O {[%emt 0:00:43]} 12. Nc2 {[%emt 0:00:19]} Bg5 {[%emt 0:00:39]} 13. h4 {[%emt 0:00:15]} Bxh4 {[%emt 0:04:14]} 14. Qh5 {[%emt 0:00:37]} Bxf2+ {[%emt 0:15:02]} 15. Kxf2 {[%emt 0:00:12]} h6 {[%emt 0:00:51]} 16. g4 {[%emt 0:07:59]} Be6 {[%emt 0:02:13]} 17. Nce3 {[%emt 0:01:14]} Qg5 {[%emt 0:05:49]} 18. Qxg5 {[%emt 0:00:51]} hxg5 {[%emt 0:00:11]} 19. Nf5 {[%emt 0:01:41]} Bxf5 {[%emt 0:03:00]} 20. gxf5 {[%emt 0:01:27]} f6 {[%emt 0:03:14]} 21. Be2 {[%emt 0:01:25]} Kf7 {[%emt 0:00:31]} 22. Bh5+ {[%emt 0:00:19]} Kg8 {[%emt 0:00:51]} 23. Bg6 {[%emt 0:00:58]} Rab8 {[%emt 0:03:31]} 24. Rh2 {[%emt 0:00:46]} 1-0

[Event "DVM U14 2024"]
[Site "Heidelberg"]
[Date "2024.12.29"]
[Round "5"]
[White "Fischermann, Simon"]
[Black "Bock, Leonas"]
[Result "1-0"]
[ECO "B33"]
[WhiteElo "1899"]
[BlackElo "1668"]
[Annotator "NA"]
[PlyCount "43"]
[EventDate "2024.12.23"]
[EventType "team-tourn"]
[EventRounds "7"]
[EventCountry "GER"]
[SourceTitle "playchess.com"]
[Source "ChessBase"]
[SourceQuality "1"]
[TimeControl "40/5400+30:1800+30"]

1. e4 {[%emt 0:00:57]} c5 {[%emt 0:00:08]} 2. Nf3 {[%emt 0:00:13]} Nc6 {[%emt 0:00:16]} 3. d4 {[%emt 0:00:06]} cxd4 {[%emt 0:00:26]} 4. Nxd4 {[%emt 0:00:08]} Nf6 {[%emt 0:00:06]} 5. Nc3 {[%emt 0:00:36]} e5 {[%emt 0:00:12]} 6. Ndb5 {[%emt 0:00:05]} d6 {[%emt 0:00:05]} 7. Nd5 {[%emt 0:00:17]} Nxd5 {[%emt 0:00:28]} 8. exd5 {[%emt 0:00:05]} Ne7 {[%emt 0:00:09]} 9. c4 {[%emt 0:00:18]} Ng6 {[%emt 0:00:54]} 10. Bd3 {[%emt 0:01:01]} a6 {[%emt 0:03:09]} 11. Nc3 {[%emt 0:00:06]} Be7 {[%emt 0:00:49]} 12. O-O {[%emt 0:00:37]} O-O {[%emt 0:00:34]} 13. f3 {[%emt 0:02:25]} f5 {[%emt 0:06:14]} 14. Be3 {[%emt 0:02:56]} Bd7 {[%emt 0:06:04]} 15. Qb3 {[%emt 0:13:54]} Bg5 {[%emt 0:14:31]} 16. Bb6 {[%emt 0:11:35]} Qe7 {[%emt 0:08:37]} 17. c5 {[%emt 0:02:38]} Be3+ {[%emt 0:03:24]} 18. Kh1 {[%emt 0:00:25]} dxc5 {[%emt 0:06:16]} 19. d6+ {[%emt 0:00:35]} Be6 {[%emt 0:14:58]} 20. dxe7 {[%emt 0:00:08]} Bxb3 {[%emt 0:00:17]} 21. exf8=Q+ {[%emt 0:00:09]} Rxf8 {[%emt 0:00:20]} 22. axb3 {[%emt 0:00:04]} 1-0

[Event "DVM U14 2024"]
[Site "Heidelberg"]
[Date "2024.12.29"]
[Round "5"]
[White "Rodriguez Klasen, Ennio"]
[Black "Haertel, Leon"]
[Result "1/2-1/2"]
[ECO "B38"]
[WhiteElo "1870"]
[BlackElo "1839"]
[Annotator "NA RC"]
[PlyCount "65"]
[EventDate "2024.12.23"]
[EventType "team-tourn"]
[EventRounds "7"]
[EventCountry "GER"]
[SourceTitle "playchess.com"]
[Source "ChessBase"]
[SourceQuality "1"]
[TimeControl "40/5400+30:1800+30"]

1. e4 {[%emt 0:00:03]} c5 {[%emt 0:00:08]} 2. Nf3 {[%emt 0:00:19]} Nc6 {[%emt 0:00:06]} 3. d4 {[%emt 0:00:19]} cxd4 {[%emt 0:00:22]} 4. Nxd4 {[%emt 0:00:20]} g6 {[%emt 0:00:26]} 5. c4 {[%emt 0:01:00]} Bg7 {[%emt 0:01:18]} 6. Be3 {[%emt 0:00:09]} Qb6 {[%emt 0:00:07]} 7. Nb3 {[%emt 0:00:14]} Qd8 {[%emt 0:00:13]} 8. Qd2 {[%emt 0:00:20]} Nf6 {[%emt 0:00:46]} 9. Nc3 {[%emt 0:00:31]} Ng4 {[%emt 0:02:26]} 10. Bf4 {[%emt 0:04:05]} d6 {[%emt 0:03:38]} 11. f3 {[%emt 0:01:53]} Nge5 {[%emt 0:03:22]} 12. Be2 {[%emt 0:05:37]} O-O {[%emt 0:05:43]} 13. Be3 {[%emt 0:12:46]} b6 {[%emt 0:11:49]} 14. Nd4 {[%emt 0:05:45]} Nxd4 {[%emt 0:09:19]} 15. Bxd4 {[%emt 0:00:43]} Be6 {[%emt 0:00:28]} 16. O-O {[%emt 0:12:26]} Rc8 {[%emt 0:13:13]} 17. b3 {[%emt 0:02:03]} Nd7 {[%emt 0:11:28]} 18. Bxg7 {[%emt 0:16:53]} Kxg7 {[%emt 0:00:15]} 19. Nb5 {[%emt 0:01:14]} a5 {[%emt 0:10:28]} 20. Nd4 {[%emt 0:08:52]} Nc5 {[%emt 0:00:57]} 21. Bd3 {[%emt 0:08:50]} Bd7 {[%emt 0:07:02]} 22. Rab1 {[%emt 0:03:59]} e5 {[%emt 0:02:37]} 23. Nc2 {[%emt 0:04:12]} f5 {[%emt 0:03:03]} 24. exf5 {[%emt 0:01:57]} Nxd3 {[%emt 0:01:14]} 25. Qxd3 {[%emt 0:00:30]} Bxf5 {[%emt 0:00:06]} 26. Qe2 {[%emt 0:00:53]} Bxc2 {[%emt 0:01:13]} 27. Qxc2 {[%emt 0:00:02]} d5 {[%emt 0:00:19]} 28. Qe2 {[%emt 0:03:04]} dxc4 {[%emt 0:02:06]} 29. Qxe5+ {[%emt 0:00:02]} Qf6 {[%emt 0:00:06]} 30. Qxf6+ {[%emt 0:01:16]} Rxf6 {[%emt 0:00:11]} 31. bxc4 {[%emt 0:00:08]} Rxc4 {[%emt 0:00:06]} 32. Rf2 {[%emt 0:02:37]} Kf7 {[%emt 0:05:19]} 33. Rfb2 {[%emt 0:00:57]} 1/2-1/2

[Event "DVM U14 2024"]
[Site "Heidelberg"]
[Date "2024.12.29"]
[Round "5"]
[White "Kovalyov, Dima"]
[Black "Mueller, Maximilian"]
[Result "1-0"]
[ECO "E07"]
[WhiteElo "1829"]
[BlackElo "1679"]
[Annotator "NA"]
[PlyCount "67"]
[EventDate "2024.12.23"]
[EventType "team-tourn"]
[EventRounds "7"]
[EventCountry "GER"]
[SourceTitle "playchess.com"]
[Source "ChessBase"]
[SourceQuality "1"]
[TimeControl "40/5400+30:1800+30"]

1. d4 {[%emt 0:00:02]} Nf6 {[%emt 0:00:07]} 2. c4 {[%emt 0:00:06]} e6 {[%emt 0:00:04]} 3. Nf3 {[%emt 0:00:03]} d5 {[%emt 0:00:09]} 4. g3 {[%emt 0:00:03]} Be7 {[%emt 0:00:34]} 5. Bg2 {[%emt 0:00:04]} O-O {[%emt 0:00:19]} 6. O-O {[%emt 0:00:04]} Nbd7 {[%emt 0:00:35]} 7. Nfd2 {[%emt 0:00:39]} c6 {[%emt 0:01:47]} 8. Nc3 {[%emt 0:00:10]} Re8 {[%emt 0:00:29]} 9. Re1 {[%emt 0:00:19]} Bf8 {[%emt 0:01:19]} 10. e4 {[%emt 0:00:28]} dxe4 {[%emt 0:02:31]} 11. Ndxe4 {[%emt 0:00:42]} Nxe4 {[%emt 0:01:26]} 12. Nxe4 {[%emt 0:00:24]} e5 {[%emt 0:04:43]} 13. d5 {[%emt 0:03:17]} cxd5 {[%emt 0:00:27]} 14. cxd5 {[%emt 0:00:15]} Nc5 {[%emt 0:01:55]} 15. Nxc5 {[%emt 0:03:35]} Bxc5 {[%emt 0:00:05]} 16. Qb3 {[%emt 0:01:15]} Qd6 {[%emt 0:18:11]} 17. Be3 {[%emt 0:02:21]} Bxe3 {[%emt 0:00:22]} 18. Rxe3 {[%emt 0:00:04]} b6 {[%emt 0:01:58]} 19. f4 {[%emt 0:06:21]} Bd7 {[%emt 0:12:34]} 20. fxe5 {[%emt 0:01:30]} Rxe5 {[%emt 0:01:42]} 21. Rxe5 {[%emt 0:00:06]} Qxe5 {[%emt 0:00:04]} 22. Qc3 {[%emt 0:00:26]} Qxc3 {[%emt 0:06:14]} 23. bxc3 {[%emt 0:00:05]} Bb5 {[%emt 0:02:15]} 24. Rd1 {[%emt 0:01:33]} Bc4 {[%emt 0:00:00]} 25. a3 {[%emt 0:00:29]} Rd8 {[%emt 0:00:35]} 26. Kf2 {[%emt 0:00:50]} f6 {[%emt 0:02:05]} 27. Ke3 {[%emt 0:00:42]} b5 {[%emt 0:01:28]} 28. Kd4 {[%emt 0:02:20]} Kf7 {[%emt 0:05:14]} 29. Kc5 {[%emt 0:02:13]} Ke7 {[%emt 0:02:59]} 30. d6+ {[%emt 0:00:37]} Kd7 {[%emt 0:03:24]} 31. Bh3+ {[%emt 0:01:19]} Be6 {[%emt 0:01:08]} 32. Bxe6+ {[%emt 0:00:07]} Kxe6 {[%emt 0:00:04]} 33. Re1+ {[%emt 0:00:05]} Kf7 {[%emt 0:00:57]} 34. Re7+ {[%emt 0:00:19]} 1-0